[Event "Titled Tuesday Blitz January 17 Late 2023"]
[White "Kaplan, Avi Harrison"]
[Black "Pace, Christopher"]
[WhiteFideId "30934559"]
[BlackFideId "2610167"]
[WhiteElo "2146"]
[BlackElo "2053"]
[Result "1-0"]
[Round "06"]
[TimeControl "180+2"]
[Date "2023.01.17"]
[WhiteClock "0:00:57"]
[BlackClock "0:00:07"]

1. Nf3 {[%clk 0:03:00]}  Nf6 {[%clk 0:02:59]} 2. b3 {[%clk 0:02:59]}  d6 {[%clk 0:02:56]} 3. Bb2 {[%clk 0:03:00]}  e5 {[%clk 0:02:56]} 4. d3 {[%clk 0:03:00]}  g6 {[%clk 0:02:53]} 5. g3 {[%clk 0:03:01]}  Bg7 {[%clk 0:02:53]} 6. Bg2 {[%clk 0:03:02]}  O-O {[%clk 0:02:54]} 7. O-O {[%clk 0:03:02]}  Re8 {[%clk 0:02:54]} 8. Nbd2 {[%clk 0:03:03]}  c6 {[%clk 0:02:52]} 9. e4 {[%clk 0:03:04]}  Nbd7 {[%clk 0:02:52]} 10. Qe2 {[%clk 0:03:04]}  Qc7 {[%clk 0:02:52]} 11. Rad1 {[%clk 0:03:05]}  a5 {[%clk 0:02:45]} 12. c3 {[%clk 0:03:05]}  a4 {[%clk 0:02:44]} 13. b4 {[%clk 0:03:03]}  a3 {[%clk 0:02:18]} 14. Bc1 {[%clk 0:03:03]}  Nb6 {[%clk 0:02:19]} 15. Nb1 {[%clk 0:03:03]}  Na4 {[%clk 0:02:13]} 16. Qc2 {[%clk 0:03:02]}  c5 {[%clk 0:02:03]} 17. bxc5 {[%clk 0:02:50]}  Qxc5 {[%clk 0:02:00]} 18. Bxa3 {[%clk 0:02:50]}  Qc7 {[%clk 0:02:00]} 19. Rc1 {[%clk 0:02:43]}  d5 {[%clk 0:01:43]} 20. exd5 {[%clk 0:02:34]}  Nxd5 {[%clk 0:01:43]} 21. c4 {[%clk 0:02:34]}  Ne7 {[%clk 0:01:35]} 22. Rfe1 {[%clk 0:02:26]}  Nc6 {[%clk 0:01:32]} 23. Nc3 {[%clk 0:02:19]}  Nxc3 {[%clk 0:01:29]} 24. Qxc3 {[%clk 0:02:20]}  e4 {[%clk 0:01:29]} 25. Qb3 {[%clk 0:02:19]}  Bf5 {[%clk 0:01:14]} 26. dxe4 {[%clk 0:02:08]}  Bxe4 {[%clk 0:01:14]} 27. Bb2 {[%clk 0:01:55]}  Na5 {[%clk 0:00:51]} 28. Qb4 {[%clk 0:01:55]}  Nc6 {[%clk 0:00:50]} 29. Qb3 {[%clk 0:01:49]}  Na5 {[%clk 0:00:49]} 30. Qb5 {[%clk 0:01:49]}  Bc6 {[%clk 0:00:21]} 31. Qb4 {[%clk 0:01:48]}  Rxe1+ {[%clk 0:00:20]} 32. Rxe1 {[%clk 0:01:47]}  Bxf3 {[%clk 0:00:18]} 33. Bxf3 {[%clk 0:01:33]}  Qxc4 {[%clk 0:00:18]} 34. Qxc4 {[%clk 0:01:09]}  Nxc4 {[%clk 0:00:19]} 35. Bxg7 {[%clk 0:01:07]}  Kxg7 {[%clk 0:00:19]} 36. Bxb7 {[%clk 0:01:05]}  Rxa2 {[%clk 0:00:18]} 37. Bd5 {[%clk 0:01:06]}  Rc2 {[%clk 0:00:18]} 38. Re7 {[%clk 0:01:04]}  Nd6 {[%clk 0:00:08]} 39. Rd7 {[%clk 0:01:04]}  Nf5 {[%clk 0:00:06]} 40. Rxf7+ {[%clk 0:01:03]}  Kh6 {[%clk 0:00:07]} 41. Be4 {[%clk 0:01:00]}  Rc1+ {[%clk 0:00:07]} 42. Kg2 {[%clk 0:01:00]}  Nd6 {[%clk 0:00:07]} 43. Rf4 {[%clk 0:00:58]}  g5 {[%clk 0:00:07]} 44. Rf6+ {[%clk 0:00:57]} 1-0


[Site "https://www.chess.com"]

[Event "Titled Tuesday Blitz January 17 Late 2023"]
[White "Garcia Almaguer, Juan Manuel"]
[Black "Ardila, Oscar Humberto"]
[WhiteFideId "5110491"]
[BlackFideId "4404742"]
[WhiteElo "2090"]
[BlackElo "1982"]
[Result "1/2-1/2"]
[Round "06"]
[TimeControl "180+2"]
[Date "2023.01.17"]
[WhiteClock "0:00:53"]
[BlackClock "0:00:36"]

1. e4 {[%clk 0:03:00]}  e5 {[%clk 0:02:59]} 2. Nf3 {[%clk 0:03:01]}  Nf6 {[%clk 0:02:59]} 3. Nxe5 {[%clk 0:02:57]}  d6 {[%clk 0:03:00]} 4. Nf3 {[%clk 0:02:57]}  Nxe4 {[%clk 0:03:00]} 5. d4 {[%clk 0:02:58]}  Be7 {[%clk 0:02:59]} 6. Bd3 {[%clk 0:02:58]}  d5 {[%clk 0:02:59]} 7. O-O {[%clk 0:02:58]}  Nc6 {[%clk 0:03:00]} 8. Nbd2 {[%clk 0:02:58]}  Nxd2 {[%clk 0:02:58]} 9. Qxd2 {[%clk 0:02:57]}  O-O {[%clk 0:02:58]} 10. h3 {[%clk 0:02:56]}  Bf6 {[%clk 0:02:57]} 11. a3 {[%clk 0:02:55]}  Nxd4 {[%clk 0:02:48]} 12. Nxd4 {[%clk 0:02:55]}  Bxd4 {[%clk 0:02:45]} 13. Bxh7+ {[%clk 0:02:55]}  Kxh7 {[%clk 0:02:45]} 14. Qxd4 {[%clk 0:02:55]}  c6 {[%clk 0:02:38]} 15. Bf4 {[%clk 0:02:51]}  Bf5 {[%clk 0:02:36]} 16. c3 {[%clk 0:02:44]}  Re8 {[%clk 0:02:36]} 17. Rfe1 {[%clk 0:02:44]}  Qb6 {[%clk 0:02:09]} 18. Qxb6 {[%clk 0:02:32]}  axb6 {[%clk 0:02:08]} 19. Bc7 {[%clk 0:02:32]}  b5 {[%clk 0:02:07]} 20. Bb6 {[%clk 0:02:32]}  f6 {[%clk 0:02:01]} 21. f3 {[%clk 0:02:32]}  g5 {[%clk 0:02:01]} 22. Kf2 {[%clk 0:02:32]}  Kg6 {[%clk 0:02:00]} 23. g4 {[%clk 0:02:29]}  Bc2 {[%clk 0:01:52]} 24. Kg3 {[%clk 0:02:25]}  Kf7 {[%clk 0:01:47]} 25. Rac1 {[%clk 0:02:22]}  Bb3 {[%clk 0:01:44]} 26. f4 {[%clk 0:02:09]}  Bc4 {[%clk 0:01:28]} 27. fxg5 {[%clk 0:02:03]}  fxg5 {[%clk 0:01:28]} 28. Be3 {[%clk 0:01:42]}  Kg6 {[%clk 0:01:26]} 29. Rc2 {[%clk 0:01:42]}  Re4 {[%clk 0:01:25]} 30. Bf2 {[%clk 0:01:36]}  Rae8 {[%clk 0:01:24]} 31. Rxe4 {[%clk 0:01:36]}  dxe4 {[%clk 0:01:22]} 32. Be3 {[%clk 0:01:34]}  Rd8 {[%clk 0:01:12]} 33. Rd2 {[%clk 0:01:34]}  Rxd2 {[%clk 0:00:54]} 34. Bxd2 {[%clk 0:01:34]}  Bd3 {[%clk 0:00:55]} 35. Be3 {[%clk 0:01:34]}  Bc2 {[%clk 0:00:53]} 36. Bd4 {[%clk 0:01:33]}  Bd3 {[%clk 0:00:54]} 37. Kf2 {[%clk 0:01:33]}  Bc2 {[%clk 0:00:54]} 38. Ke3 {[%clk 0:01:32]}  Bd3 {[%clk 0:00:53]} 39. Be5 {[%clk 0:01:31]}  Bc2 {[%clk 0:00:53]} 40. Kd4 {[%clk 0:01:14]}  Kf7 {[%clk 0:00:44]} 41. Kc5 {[%clk 0:01:12]}  e3 {[%clk 0:00:44]} 42. Bg3 {[%clk 0:01:10]}  Ke6 {[%clk 0:00:37]} 43. Kd4 {[%clk 0:00:57]}  e2 {[%clk 0:00:37]} 44. Ke3 {[%clk 0:00:57]}  Bd1 {[%clk 0:00:36]} 45. Kd2 {[%clk 0:00:54]}  Kd5 {[%clk 0:00:26]} 46. h4 {[%clk 0:00:44]}  gxh4 {[%clk 0:00:24]} 47. Bxh4 {[%clk 0:00:45]}  Ke4 {[%clk 0:00:23]} 48. Bd8 {[%clk 0:00:40]}  Kf4 {[%clk 0:00:20]} 49. g5 {[%clk 0:00:40]}  Kf5 {[%clk 0:00:20]} 50. b4 {[%clk 0:00:34]}  b6 {[%clk 0:00:20]} 51. Ke1 {[%clk 0:00:31]}  c5 {[%clk 0:00:20]} 52. Kd2 {[%clk 0:00:31]}  c4 {[%clk 0:00:17]} 53. Ke1 {[%clk 0:00:25]}  Kg6 {[%clk 0:00:18]} 54. Kf2 {[%clk 0:00:25]}  Kf5 {[%clk 0:00:18]} 55. Be7 {[%clk 0:00:24]}  Kg6 {[%clk 0:00:18]} 56. Bd8 {[%clk 0:00:22]}  Kf5 {[%clk 0:00:19]} 57. Bf6 {[%clk 0:00:16]}  Kg6 {[%clk 0:00:19]} 58. Ke1 {[%clk 0:00:16]}  Kf5 {[%clk 0:00:19]} 59. Bd8 {[%clk 0:00:16]}  Kg6 {[%clk 0:00:19]} 60. Kd2 {[%clk 0:00:16]}  Kf5 {[%clk 0:00:20]} 61. Bxb6 {[%clk 0:00:14]}  Kxg5 {[%clk 0:00:20]} 62. Bf2 {[%clk 0:00:14]}  Kf5 {[%clk 0:00:20]} 63. Be1 {[%clk 0:00:14]}  Ke6 {[%clk 0:00:20]} 64. Ke3 {[%clk 0:00:14]}  Kd5 {[%clk 0:00:21]} 65. Bd2 {[%clk 0:00:14]}  Kd6 {[%clk 0:00:20]} 66. Kd4 {[%clk 0:00:13]}  Ba4 {[%clk 0:00:19]} 67. Be1 {[%clk 0:00:13]}  Ke6 {[%clk 0:00:19]} 68. Bg3 {[%clk 0:00:13]}  Kf5 {[%clk 0:00:20]} 69. Ke3 {[%clk 0:00:13]}  Kg4 {[%clk 0:00:20]} 70. Be1 {[%clk 0:00:13]}  Kh3 {[%clk 0:00:20]} 71. Kxe2 {[%clk 0:00:14]}  Kg2 {[%clk 0:00:19]} 72. Ke3 {[%clk 0:00:14]}  Kf1 {[%clk 0:00:20]} 73. Kd2 {[%clk 0:00:14]}  Kg2 {[%clk 0:00:20]} 74. Bh4 {[%clk 0:00:15]}  Kf3 {[%clk 0:00:19]} 75. Be7 {[%clk 0:00:15]}  Ke4 {[%clk 0:00:19]} 76. Bc5 {[%clk 0:00:15]}  Kf3 {[%clk 0:00:19]} 77. Bd4 {[%clk 0:00:16]}  Ke4 {[%clk 0:00:20]} 78. Ke1 {[%clk 0:00:17]}  Kd3 {[%clk 0:00:20]} 79. Kf2 {[%clk 0:00:18]}  Kc2 {[%clk 0:00:20]} 80. Kf3 {[%clk 0:00:19]}  Kb3 {[%clk 0:00:21]} 81. Kf4 {[%clk 0:00:20]}  Kxa3 {[%clk 0:00:21]} 82. Ke5 {[%clk 0:00:21]}  Kb3 {[%clk 0:00:22]} 83. Kd5 {[%clk 0:00:22]}  Kc2 {[%clk 0:00:22]} 84. Kc5 {[%clk 0:00:23]}  Kb2 {[%clk 0:00:23]} 85. Kb6 {[%clk 0:00:23]}  Ka3 {[%clk 0:00:23]} 86. Ka5 {[%clk 0:00:24]}  Kb3 {[%clk 0:00:23]} 87. Kb6 {[%clk 0:00:25]}  Kc2 {[%clk 0:00:24]} 88. Ka5 {[%clk 0:00:26]}  Kd3 {[%clk 0:00:24]} 89. Kb6 {[%clk 0:00:27]}  Ke4 {[%clk 0:00:25]} 90. Ka5 {[%clk 0:00:28]}  Kd5 {[%clk 0:00:25]} 91. Kb6 {[%clk 0:00:29]}  Kd6 {[%clk 0:00:25]} 92. Kb7 {[%clk 0:00:29]}  Kd7 {[%clk 0:00:25]} 93. Kb6 {[%clk 0:00:30]}  Kd6 {[%clk 0:00:26]} 94. Kb7 {[%clk 0:00:31]}  Kd5 {[%clk 0:00:25]} 95. Kb6 {[%clk 0:00:32]}  Ke6 {[%clk 0:00:25]} 96. Kb7 {[%clk 0:00:33]}  Kf5 {[%clk 0:00:26]} 97. Kb6 {[%clk 0:00:34]}  Ke4 {[%clk 0:00:26]} 98. Kb7 {[%clk 0:00:35]}  Kd3 {[%clk 0:00:26]} 99. Kb6 {[%clk 0:00:35]}  Kc2 {[%clk 0:00:27]} 100. Kb7 {[%clk 0:00:36]}  Kb3 {[%clk 0:00:27]} 101. Kb6 {[%clk 0:00:37]}  Ka3 {[%clk 0:00:28]} 102. Ka7 {[%clk 0:00:38]}  Kb2 {[%clk 0:00:28]} 103. Kb8 {[%clk 0:00:38]}  Kc2 {[%clk 0:00:29]} 104. Kc7 {[%clk 0:00:39]}  Kd3 {[%clk 0:00:29]} 105. Kd6 {[%clk 0:00:40]}  Ke4 {[%clk 0:00:29]} 106. Ke6 {[%clk 0:00:41]}  Kd3 {[%clk 0:00:30]} 107. Ke5 {[%clk 0:00:41]}  Kd2 {[%clk 0:00:30]} 108. Kf4 {[%clk 0:00:42]}  Bb3 {[%clk 0:00:30]} 109. Kf3 {[%clk 0:00:43]}  Bc2 {[%clk 0:00:30]} 110. Kf2 {[%clk 0:00:42]}  Kc1 {[%clk 0:00:30]} 111. Ke3 {[%clk 0:00:42]}  Ba4 {[%clk 0:00:31]} 112. Kf4 {[%clk 0:00:42]}  Kb2 {[%clk 0:00:31]} 113. Ke3 {[%clk 0:00:43]}  Kc1 {[%clk 0:00:32]} 114. Be5 {[%clk 0:00:43]}  Kb2 {[%clk 0:00:33]} 115. Kd4 {[%clk 0:00:44]}  Kc2 {[%clk 0:00:33]} 116. Kc5 {[%clk 0:00:45]}  Kb3 {[%clk 0:00:33]} 117. Bd4 {[%clk 0:00:45]}  Kc2 {[%clk 0:00:33]} 118. Kb6 {[%clk 0:00:46]}  Kb3 {[%clk 0:00:34]} 119. Ka5 {[%clk 0:00:47]}  Kc2 {[%clk 0:00:34]} 120. Kb6 {[%clk 0:00:48]}  Kb3 {[%clk 0:00:34]} 121. Kb7 {[%clk 0:00:49]}  Kc2 {[%clk 0:00:35]} 122. Kb8 {[%clk 0:00:50]}  Kb3 {[%clk 0:00:35]} 123. Ka8 {[%clk 0:00:51]}  Kc2 {[%clk 0:00:36]} 124. Ka7 {[%clk 0:00:52]}  Kb3 {[%clk 0:00:36]} 125. Kb6 {[%clk 0:00:53]} 1/2-1/2


[Site "https://www.chess.com"]

[Event "Titled Tuesday Blitz January 17 Late 2023"]
[White "Belenkaya, Dina"]
[Black "Mendez Machado, Andre"]
[WhiteFideId "24142654"]
[BlackFideId "6603793"]
[WhiteElo "2267"]
[BlackElo "1974"]
[Result "1-0"]
[Round "06"]
[TimeControl "180+2"]
[Date "2023.01.17"]
[WhiteClock "0:00:58"]
[BlackClock "0:00:03"]

1. Nf3 {[%clk 0:03:00]}  Nf6 {[%clk 0:02:59]} 2. g3 {[%clk 0:02:56]}  e6 {[%clk 0:03:00]} 3. Bg2 {[%clk 0:02:52]}  d5 {[%clk 0:03:00]} 4. d3 {[%clk 0:02:51]}  Be7 {[%clk 0:03:00]} 5. Nbd2 {[%clk 0:02:51]}  Nc6 {[%clk 0:02:58]} 6. e4 {[%clk 0:02:49]}  dxe4 {[%clk 0:02:58]} 7. dxe4 {[%clk 0:02:46]}  e5 {[%clk 0:02:57]} 8. c3 {[%clk 0:02:45]}  O-O {[%clk 0:02:57]} 9. O-O {[%clk 0:02:43]}  a5 {[%clk 0:02:55]} 10. Qe2 {[%clk 0:02:42]}  b6 {[%clk 0:02:45]} 11. Rd1 {[%clk 0:02:39]}  Ba6 {[%clk 0:02:33]} 12. Qe1 {[%clk 0:02:38]}  Qc8 {[%clk 0:02:25]} 13. b3 {[%clk 0:02:31]}  Bc5 {[%clk 0:02:21]} 14. Nf1 {[%clk 0:02:19]}  Bxf1 {[%clk 0:01:45]} 15. Bxf1 {[%clk 0:02:13]}  Qg4 {[%clk 0:01:44]} 16. Nd2 {[%clk 0:02:02]}  Rad8 {[%clk 0:01:40]} 17. Kg2 {[%clk 0:01:55]}  h5 {[%clk 0:00:28]} 18. f3 {[%clk 0:01:46]}  Qg6 {[%clk 0:00:27]} 19. h4 {[%clk 0:01:31]}  Rd7 {[%clk 0:00:23]} 20. Nc4 {[%clk 0:01:26]}  Rxd1 {[%clk 0:00:22]} 21. Qxd1 {[%clk 0:01:24]}  Rd8 {[%clk 0:00:18]} 22. Qe2 {[%clk 0:01:19]}  b5 {[%clk 0:00:19]} 23. Ne3 {[%clk 0:01:18]}  Nxe4 {[%clk 0:00:16]} 24. fxe4 {[%clk 0:01:14]}  Qxe4+ {[%clk 0:00:17]} 25. Qf3 {[%clk 0:01:14]}  Qg6 {[%clk 0:00:14]} 26. Be2 {[%clk 0:01:13]}  Bxe3 {[%clk 0:00:13]} 27. Bxe3 {[%clk 0:01:12]}  e4 {[%clk 0:00:12]} 28. Qxh5 {[%clk 0:01:12]}  Qd6 {[%clk 0:00:11]} 29. Bxb5 {[%clk 0:01:12]}  Ne5 {[%clk 0:00:10]} 30. Be2 {[%clk 0:01:05]}  Qe6 {[%clk 0:00:07]} 31. Rf1 {[%clk 0:01:03]}  f6 {[%clk 0:00:06]} 32. Qf5 {[%clk 0:01:00]}  Qd5 {[%clk 0:00:06]} 33. Bc4 {[%clk 0:00:58]}  Nxc4 {[%clk 0:00:06]} 34. Qxd5+ {[%clk 0:00:59]}  Rxd5 {[%clk 0:00:06]} 35. bxc4 {[%clk 0:01:00]}  Rd3 {[%clk 0:00:07]} 36. Bd4 {[%clk 0:00:59]}  e3 {[%clk 0:00:06]} 37. Kf3 {[%clk 0:00:59]}  Rd2 {[%clk 0:00:06]} 38. Re1 {[%clk 0:00:59]}  Rxa2 {[%clk 0:00:07]} 39. Rxe3 {[%clk 0:00:59]}  a4 {[%clk 0:00:08]} 40. Re8+ {[%clk 0:00:59]}  Kf7 {[%clk 0:00:07]} 41. Ra8 {[%clk 0:01:00]}  a3 {[%clk 0:00:07]} 42. c5 {[%clk 0:01:00]}  Ra1 {[%clk 0:00:07]} 43. Ke4 {[%clk 0:01:00]}  a2 {[%clk 0:00:07]} 44. Kd5 {[%clk 0:01:00]}  Ke7 {[%clk 0:00:03]} 45. c6 {[%clk 0:01:00]}  f5 {[%clk 0:00:02]} 46. Kc5 {[%clk 0:00:59]}  f4 {[%clk 0:00:03]} 47. gxf4 {[%clk 0:00:59]}  Ke6 {[%clk 0:00:03]} 48. Bxg7 {[%clk 0:00:57]}  Kf5 {[%clk 0:00:03]} 49. Be5 {[%clk 0:00:57]}  Kg4 {[%clk 0:00:03]} 50. Bxc7 {[%clk 0:00:56]}  Kxh4 {[%clk 0:00:03]} 51. Be5 {[%clk 0:00:56]}  Kg4 {[%clk 0:00:03]} 52. c7 {[%clk 0:00:57]}  Kf3 {[%clk 0:00:03]} 53. c8=Q {[%clk 0:00:57]}  Rc1 {[%clk 0:00:03]} 54. Qc6+ {[%clk 0:00:58]} 1-0


[Site "https://www.chess.com"]

[Event "Titled Tuesday Blitz January 17 Late 2023"]
[White "Gatterer, Florian"]
[Black "Zampronha, Wladimir Camilo"]
[WhiteFideId "811688"]
[BlackFideId "2103087"]
[WhiteElo "2170"]
[BlackElo "2176"]
[Result "1-0"]
[Round "06"]
[TimeControl "180+2"]
[Date "2023.01.17"]
[WhiteClock "0:02:18"]
[BlackClock "0:01:29"]

1. d4 {[%clk 0:03:00]}  Nf6 {[%clk 0:02:59]} 2. c4 {[%clk 0:02:57]}  e6 {[%clk 0:03:00]} 3. Nc3 {[%clk 0:02:57]}  Bb4 {[%clk 0:03:00]} 4. e3 {[%clk 0:02:57]}  d5 {[%clk 0:02:58]} 5. Nf3 {[%clk 0:02:55]}  O-O {[%clk 0:02:58]} 6. cxd5 {[%clk 0:02:53]}  exd5 {[%clk 0:02:58]} 7. Bd3 {[%clk 0:02:52]}  c5 {[%clk 0:02:57]} 8. O-O {[%clk 0:02:48]}  Nc6 {[%clk 0:02:56]} 9. dxc5 {[%clk 0:02:48]}  Bxc5 {[%clk 0:02:57]} 10. b3 {[%clk 0:02:46]}  Bg4 {[%clk 0:02:55]} 11. h3 {[%clk 0:02:45]}  Bh5 {[%clk 0:02:55]} 12. Bb2 {[%clk 0:02:40]}  Rc8 {[%clk 0:02:54]} 13. Be2 {[%clk 0:02:36]}  Re8 {[%clk 0:02:45]} 14. Na4 {[%clk 0:02:32]}  Be7 {[%clk 0:02:00]} 15. Rc1 {[%clk 0:02:30]}  Ne4 {[%clk 0:01:59]} 16. Nd4 {[%clk 0:02:24]}  Bxe2 {[%clk 0:01:53]} 17. Qxe2 {[%clk 0:02:24]}  Nxd4 {[%clk 0:01:49]} 18. Bxd4 {[%clk 0:02:22]}  Qa5 {[%clk 0:01:30]} 19. Rxc8 {[%clk 0:02:21]}  Rxc8 {[%clk 0:01:29]} 20. Qg4 {[%clk 0:02:18]} 1-0


[Site "https://www.chess.com"]

[Event "Titled Tuesday Blitz January 17 Late 2023"]
[White "Mazurkiewicz, Michal"]
[Black "Ward, Ieuan C"]
[WhiteFideId "1124943"]
[BlackFideId "406627"]
[WhiteElo "2145"]
[BlackElo "2028"]
[Result "1-0"]
[Round "06"]
[TimeControl "180+2"]
[Date "2023.01.17"]
[WhiteClock "0:00:16"]
[BlackClock "0:00:03"]

1. e4 {[%clk 0:03:00]}  d5 {[%clk 0:02:58]} 2. exd5 {[%clk 0:03:00]}  Qxd5 {[%clk 0:02:59]} 3. d3 {[%clk 0:02:59]}  b6 {[%clk 0:02:56]} 4. Nc3 {[%clk 0:02:57]}  Qd8 {[%clk 0:02:53]} 5. g3 {[%clk 0:02:56]}  Bb7 {[%clk 0:02:53]} 6. Nf3 {[%clk 0:02:57]}  Nf6 {[%clk 0:02:52]} 7. Bg2 {[%clk 0:02:57]}  e6 {[%clk 0:02:52]} 8. O-O {[%clk 0:02:57]}  Be7 {[%clk 0:02:51]} 9. Re1 {[%clk 0:02:58]}  O-O {[%clk 0:02:51]} 10. Bf4 {[%clk 0:02:50]}  Nbd7 {[%clk 0:02:49]} 11. a4 {[%clk 0:02:39]}  Nd5 {[%clk 0:02:41]} 12. Nxd5 {[%clk 0:02:38]}  Bxd5 {[%clk 0:02:40]} 13. a5 {[%clk 0:02:38]}  bxa5 {[%clk 0:02:29]} 14. Bd2 {[%clk 0:02:18]}  Rb8 {[%clk 0:02:22]} 15. b3 {[%clk 0:02:18]}  Bb4 {[%clk 0:02:12]} 16. Bxb4 {[%clk 0:02:16]}  axb4 {[%clk 0:02:10]} 17. Rxa7 {[%clk 0:02:15]}  Nf6 {[%clk 0:02:01]} 18. Qd2 {[%clk 0:02:12]}  c5 {[%clk 0:01:51]} 19. Qf4 {[%clk 0:02:01]}  Ra8 {[%clk 0:01:40]} 20. Rea1 {[%clk 0:02:00]}  Qb6 {[%clk 0:01:28]} 21. Rxa8 {[%clk 0:01:36]}  Rxa8 {[%clk 0:01:22]} 22. Rxa8+ {[%clk 0:01:33]}  Bxa8 {[%clk 0:01:23]} 23. h3 {[%clk 0:01:32]}  h6 {[%clk 0:01:22]} 24. g4 {[%clk 0:01:27]}  Bd5 {[%clk 0:01:05]} 25. Ne5 {[%clk 0:01:17]}  Bxg2 {[%clk 0:01:02]} 26. Kxg2 {[%clk 0:01:18]}  Qb7+ {[%clk 0:00:55]} 27. Qf3 {[%clk 0:01:09]}  Qxf3+ {[%clk 0:00:49]} 28. Kxf3 {[%clk 0:01:10]}  Kf8 {[%clk 0:00:48]} 29. h4 {[%clk 0:01:04]}  Ke7 {[%clk 0:00:48]} 30. g5 {[%clk 0:01:03]}  hxg5 {[%clk 0:00:47]} 31. hxg5 {[%clk 0:01:04]}  Nd5 {[%clk 0:00:44]} 32. d4 {[%clk 0:00:54]}  cxd4 {[%clk 0:00:38]} 33. Ke4 {[%clk 0:00:54]}  f6 {[%clk 0:00:25]} 34. gxf6+ {[%clk 0:00:53]}  gxf6 {[%clk 0:00:24]} 35. Nc6+ {[%clk 0:00:54]}  Kd6 {[%clk 0:00:22]} 36. Nxd4 {[%clk 0:00:54]}  f5+ {[%clk 0:00:20]} 37. Kd3 {[%clk 0:00:54]}  Nf4+ {[%clk 0:00:16]} 38. Kc4 {[%clk 0:00:53]}  Nh3 {[%clk 0:00:16]} 39. f3 {[%clk 0:00:45]}  f4 {[%clk 0:00:15]} 40. Kxb4 {[%clk 0:00:43]}  e5 {[%clk 0:00:14]} 41. Nf5+ {[%clk 0:00:42]}  Ke6 {[%clk 0:00:13]} 42. Nh4 {[%clk 0:00:41]}  Kd5 {[%clk 0:00:12]} 43. c4+ {[%clk 0:00:40]}  Kd4 {[%clk 0:00:12]} 44. c5 {[%clk 0:00:40]}  Ng5 {[%clk 0:00:12]} 45. c6 {[%clk 0:00:33]}  Ne6 {[%clk 0:00:12]} 46. Kb5 {[%clk 0:00:34]}  Kd5 {[%clk 0:00:12]} 47. Kb6 {[%clk 0:00:34]}  Kd6 {[%clk 0:00:12]} 48. b4 {[%clk 0:00:30]}  Ke7 {[%clk 0:00:06]} 49. Nf5+ {[%clk 0:00:20]}  Kd8 {[%clk 0:00:06]} 50. Kb7 {[%clk 0:00:18]}  Nc7 {[%clk 0:00:03]} 51. Nd6 {[%clk 0:00:16]} 1-0


[Site "https://www.chess.com"]

[Event "Titled Tuesday Blitz January 17 Late 2023"]
[White "ritanovikova"]
[Black "Dylag, Emilia"]
[BlackFideId "21805172"]
[WhiteElo "2148"]
[BlackElo "2095"]
[Result "1-0"]
[Round "06"]
[TimeControl "180+2"]
[Date "2023.01.17"]
[WhiteClock "0:00:08"]
[BlackClock "0:00:02"]

1. d4 {[%clk 0:02:59]}  Nf6 {[%clk 0:02:58]} 2. Bf4 {[%clk 0:02:59]}  g6 {[%clk 0:02:54]} 3. Nf3 {[%clk 0:02:53]}  d6 {[%clk 0:02:52]} 4. h3 {[%clk 0:02:52]}  Bg7 {[%clk 0:02:52]} 5. e3 {[%clk 0:02:52]}  O-O {[%clk 0:02:53]} 6. Be2 {[%clk 0:02:52]}  Nfd7 {[%clk 0:02:51]} 7. O-O {[%clk 0:02:51]}  c6 {[%clk 0:02:50]} 8. c3 {[%clk 0:02:48]}  Qe8 {[%clk 0:02:50]} 9. e4 {[%clk 0:02:39]}  e5 {[%clk 0:02:48]} 10. dxe5 {[%clk 0:02:39]}  dxe5 {[%clk 0:02:38]} 11. Bg3 {[%clk 0:02:38]}  h6 {[%clk 0:02:22]} 12. Qd6 {[%clk 0:02:30]}  f5 {[%clk 0:02:14]} 13. Bc4+ {[%clk 0:02:19]}  Kh7 {[%clk 0:02:11]} 14. exf5 {[%clk 0:02:16]}  gxf5 {[%clk 0:02:07]} 15. Re1 {[%clk 0:02:15]}  e4 {[%clk 0:01:54]} 16. Bf4 {[%clk 0:01:44]}  Rf6 {[%clk 0:01:47]} 17. Qd2 {[%clk 0:01:33]}  b5 {[%clk 0:01:44]} 18. Bb3 {[%clk 0:01:31]}  Na6 {[%clk 0:01:35]} 19. Na3 {[%clk 0:01:29]}  Nac5 {[%clk 0:01:34]} 20. Bc2 {[%clk 0:01:25]}  Qf7 {[%clk 0:01:24]} 21. Nd4 {[%clk 0:01:23]}  Bb7 {[%clk 0:01:18]} 22. b4 {[%clk 0:01:22]}  Ne6 {[%clk 0:01:12]} 23. Bb3 {[%clk 0:01:21]}  Re8 {[%clk 0:01:02]} 24. Nxe6 {[%clk 0:01:19]}  Rfxe6 {[%clk 0:01:02]} 25. Bxe6 {[%clk 0:01:15]}  Rxe6 {[%clk 0:00:59]} 26. Rad1 {[%clk 0:01:15]}  Nb6 {[%clk 0:00:58]} 27. Be3 {[%clk 0:01:02]}  Nd5 {[%clk 0:00:56]} 28. Bd4 {[%clk 0:01:01]}  Rg6 {[%clk 0:00:54]} 29. Kh1 {[%clk 0:00:48]}  f4 {[%clk 0:00:47]} 30. Bxg7 {[%clk 0:00:45]}  f3 {[%clk 0:00:47]} 31. Rg1 {[%clk 0:00:34]}  Qxg7 {[%clk 0:00:45]} 32. g3 {[%clk 0:00:29]}  Qd7 {[%clk 0:00:40]} 33. Kh2 {[%clk 0:00:28]}  Bc8 {[%clk 0:00:40]} 34. g4 {[%clk 0:00:26]}  Qc7+ {[%clk 0:00:34]} 35. Rg3 {[%clk 0:00:25]}  Re6 {[%clk 0:00:23]} 36. Nc2 {[%clk 0:00:23]}  e3 {[%clk 0:00:20]} 37. Nxe3 {[%clk 0:00:22]}  Nxe3 {[%clk 0:00:19]} 38. fxe3 {[%clk 0:00:21]}  Qe5 {[%clk 0:00:19]} 39. Qf2 {[%clk 0:00:20]}  Rf6 {[%clk 0:00:14]} 40. Kg1 {[%clk 0:00:18]}  Be6 {[%clk 0:00:10]} 41. Rxf3 {[%clk 0:00:18]}  Rxf3 {[%clk 0:00:07]} 42. Qxf3 {[%clk 0:00:19]}  Qxc3 {[%clk 0:00:07]} 43. Qf4 {[%clk 0:00:16]}  Qc2 {[%clk 0:00:05]} 44. Rf1 {[%clk 0:00:16]}  Bd5 {[%clk 0:00:04]} 45. Qf5+ {[%clk 0:00:12]}  Qxf5 {[%clk 0:00:05]} 46. Rxf5 {[%clk 0:00:13]}  Bxa2 {[%clk 0:00:05]} 47. Rf6 {[%clk 0:00:11]}  Bd5 {[%clk 0:00:03]} 48. Rd6 {[%clk 0:00:11]}  Kg7 {[%clk 0:00:03]} 49. Rd7+ {[%clk 0:00:11]}  Kf6 {[%clk 0:00:02]} 50. Rxa7 {[%clk 0:00:11]}  Ke5 {[%clk 0:00:03]} 51. Kf2 {[%clk 0:00:11]}  Kd6 {[%clk 0:00:03]} 52. Rh7 {[%clk 0:00:11]}  c5 {[%clk 0:00:03]} 53. Rxh6+ {[%clk 0:00:10]}  Ke5 {[%clk 0:00:03]} 54. bxc5 {[%clk 0:00:10]}  b4 {[%clk 0:00:04]} 55. Rb6 {[%clk 0:00:10]}  b3 {[%clk 0:00:01]} 56. h4 {[%clk 0:00:09]}  b2 {[%clk 0:00:02]} 57. Rxb2 {[%clk 0:00:08]} 1-0


[Site "https://www.chess.com"]